fUST/lending_fUST_20250419
["ID","MTS","AMOUNT","RATE_DAILY","PERIOD"]
[358376034,1745016633549,-337744.74453254,0.00021817,2]
[358376035,1745016633562,-303.09553512,0.00021817,2]
[358376036,1745016633607,-2563.10730998,0.00021817,2]
[358376037,1745016633619,-2750.0,0.00021817,2]
[358376038,1745016633631,-4450.0,0.00021817,2]
[358376051,1745016638527,-500.0,0.00019464,2]
[358376052,1745016638537,-500.0,0.00019464,2]
[358376053,1745016638547,-500.0,0.00019464,2]
[358376054,1745016638557,-500.0,0.00019464,2]
[358376055,1745016638566,-219.60836399,0.00019464,2]
[358376056,1745016638576,-500.0,0.00019464,2]
[358376057,1745016638585,-262.73617295,0.00019464,2]
[358376058,1745016638595,-500.0,0.00019464,2]
[358376059,1745016638604,-497.2706729,0.00019464,2]
[358376060,1745016638614,-500.0,0.00019464,2]
[358376061,1745016638623,-500.0,0.00019464,2]
[358376062,1745016638633,-500.0,0.00019464,2]
[358376063,1745016638643,-500.0,0.00019464,2]
[358376064,1745016638652,-500.0,0.00019464,2]
[358376065,1745016638662,-500.0,0.00019464,2]
[358376066,1745016638673,-500.0,0.00019464,2]
[358376067,1745016638683,-500.0,0.00019464,2]
[358376068,1745016638692,-500.0,0.00019464,2]
[358376069,1745016638701,-500.0,0.00019464,2]
[358376070,1745016638711,-500.0,0.00019464,2]
[358376071,1745016638720,-500.0,0.00019464,2]
[358376072,1745016638730,-500.0,0.00019464,2]
[358376073,1745016638739,-500.0,0.00019464,2]
[358376074,1745016638749,-500.0,0.00019464,2]
[358376075,1745016638759,-500.0,0.00019464,2]
[358376076,1745016638768,-500.0,0.00019464,2]
[358376077,1745016638778,-500.0,0.00019464,2]
[358376078,1745016638787,-500.0,0.00019464,2]
[358376079,1745016638797,-500.0,0.00019464,2]
[358376080,1745016638806,-484.86761075,0.00019464,2]
[358376081,1745016638815,-500.0,0.00019464,2]
[358376082,1745016638825,-500.0,0.00019464,2]
[358376083,1745016638835,-500.0,0.00019464,2]
[358376084,1745016638844,-500.0,0.00019464,2]
[358376085,1745016638854,-500.0,0.00019464,2]
[358376086,1745016638863,-500.0,0.00019464,2]
[358376087,1745016638872,-500.0,0.00020463,2]
[358376088,1745016638882,-500.0,0.00020463,2]
[358376089,1745016638891,-402.0,0.00021034,2]
[358376090,1745016638901,-272.87892677,0.00021379,2]
[358376091,1745016638910,-272.87892677,0.00021717,2]
[358376092,1745016638921,-22189.05262236,0.00021817,2]
[358376093,1745016638931,-151.0,0.00021817,2]
[358376094,1745016638940,-360.940155,0.00021817,2]
[358376095,1745016638949,-360.940155,0.00021817,2]
[358376096,1745016638959,-600.0,0.00021829,2]
[358376097,1745016638969,-200.0,0.000219,2]
[358376098,1745016638979,-200.0,0.000219,2]
[358376099,1745016638989,-151.0,0.000219,120]
[358376100,1745016638998,-500.0,0.00021917,2]
[358376101,1745016639008,-500.0,0.00021917,2]
[358376102,1745016639017,-500.0,0.00021917,2]
[358376103,1745016639026,-488.24828962,0.00021917,2]
[358376104,1745016639039,-11.75171038,0.00021917,2]
[358376105,1745016639048,-542.36,0.00021917,2]
[358376106,1745016639058,-500.0,0.00021917,2]
[358376107,1745016639067,-500.0,0.00021917,2]
[358376108,1745016639077,-500.0,0.00021917,2]
[358376109,1745016639086,-262.25253722,0.00021917,2]
[358376110,1745016639099,-637.76746278,0.00021917,2]
[358376111,1745016639108,-500.0,0.00021917,2]
[358376112,1745016639119,-500.0,0.00021917,2]
[358376113,1745016639130,-500.0,0.00021917,2]
[358376114,1745016639141,-500.0,0.00021917,2]
[358376115,1745016639151,-184.75283398,0.00021917,2]
[358376127,1745016640591,-315.24716602,0.00021917,2]
[358376129,1745016640602,-500.0,0.00021917,2]
[358376131,1745016640612,-500.0,0.00021917,2]
[358376132,1745016640621,-427.49739566,0.00021917,2]
[358376133,1745016640700,-72.50260434,0.00021917,2]
[358376134,1745016640710,-339.53379563,0.00021917,2]
[358376144,1745016643370,-404.625614,0.00020465,2]
[358376145,1745016643381,-160.46620437,0.00021917,2]
[358376146,1745016643390,-500.0,0.00021917,2]
[358376147,1745016643399,-500.0,0.00021917,2]
[358376148,1745016643409,-500.0,0.00021917,2]
[358376149,1745016643418,-500.0,0.00021917,2]
[358376150,1745016643427,-500.0,0.00021917,2]
[358376151,1745016643437,-500.0,0.00021917,2]
[358376152,1745016643446,-500.0,0.00021917,2]
[358376153,1745016643456,-520.59,0.00021917,2]
[358376154,1745016643465,-500.0,0.00021917,2]
[358376155,1745016643476,-500.0,0.00021917,2]
[358376156,1745016643488,-500.0,0.00021917,2]
[358376157,1745016643498,-500.0,0.00021917,2]
[358376158,1745016643508,-500.0,0.00021917,2]
[358376159,1745016643517,-500.0,0.00021917,2]
[358376160,1745016643527,-500.0,0.00021917,2]
[358376161,1745016643536,-378.26818163,0.00021917,2]
[358376162,1745016643553,-121.73181837,0.00021917,2]
[358376163,1745016643562,-500.0,0.00021917,2]
[358376164,1745016643572,-500.0,0.00021917,2]
[358376165,1745016643581,-500.0,0.00021917,2]
[358376166,1745016643591,-500.0,0.00021917,2]
[358376167,1745016643601,-500.0,0.00021917,2]
[358376168,1745016643610,-182.05113683,0.00021917,2]
[358376188,1745016646598,-404.625614,0.0002052,2]
[358376189,1745016646608,-404.625614,0.00021817,2]
[358376190,1745016646618,-317.94886317,0.00021917,2]
[358376191,1745016646627,-1063.2,0.00021917,2]
[358376192,1745016646637,-500.0,0.00021917,2]
[358376193,1745016646646,-500.0,0.00021917,2]
[358376194,1745016646656,-715.52,0.00021917,2]
[358376195,1745016646665,-500.0,0.00021917,2]
[358376196,1745016646674,-500.0,0.00021917,2]
[358376197,1745016646686,-500.0,0.00021917,2]
[358376198,1745016646695,-500.0,0.00021917,2]
[358376199,1745016646704,-500.0,0.00021917,2]
[358376200,1745016646714,-500.0,0.00021917,2]
[358376201,1745016646723,-500.0,0.00021917,2]
[358376202,1745016646733,-500.0,0.00021917,2]
[358376203,1745016646742,-500.0,0.00021917,2]
[358376204,1745016646752,-500.0,0.00021917,2]
[358376205,1745016646761,-500.0,0.00021917,2]
[358376206,1745016646771,-500.0,0.00021917,2]
[358376207,1745016646781,-500.0,0.00021917,2]
[358376208,1745016646791,-757.7,0.00021917,2]
[358376209,1745016646801,-500.0,0.00021917,2]
[358376210,1745016646810,-500.0,0.00021917,2]
[358376211,1745016646820,-369.39568318,0.00021917,2]
[358376212,1745016646830,-500.0,0.00021917,2]
[358376213,1745016646840,-500.0,0.00021917,2]
[358376214,1745016646849,-500.0,0.00021917,2]
[358376215,1745016646859,-500.0,0.00021917,2]
[358376216,1745016646868,-500.0,0.00021917,2]
[358376217,1745016646878,-500.0,0.00021917,2]
[358376218,1745016646888,-500.0,0.00021917,2]
[358376219,1745016646898,-500.0,0.00021917,2]
[358376220,1745016646907,-500.0,0.00021917,2]
[358376221,1745016646917,-500.0,0.00021917,2]
[358376222,1745016646927,-500.0,0.00021917,2]
[358376223,1745016646941,-500.0,0.00021917,2]
[358376224,1745016646950,-500.0,0.00021917,2]
[358376225,1745016646960,-500.0,0.00021917,2]
[358376226,1745016646970,-500.0,0.00021917,2]
[358376227,1745016646979,-500.0,0.00021917,2]
[358376228,1745016646988,-500.0,0.00021917,2]
[358376229,1745016646998,-959.23,0.00021917,2]
[358376230,1745016647007,-500.0,0.00021917,2]
[358376231,1745016647017,-138.70187712,0.00021917,2]
[358376232,1745016647031,-361.29812288,0.00021917,2]
[358376233,1745016647040,-520.92157525,0.00021917,2]
[358376250,1745017832910,-184.84823122,0.00019464,2]
[358376251,1745017832920,-1231.53928355,0.00019464,2]
[358376252,1745017832929,-1231.53928355,0.00019464,2]
[358376253,1745017832938,-1231.53928355,0.00019464,2]
[358376254,1745017832947,-1231.53928355,0.00019464,2]
[358376255,1745017832955,-1231.53928355,0.00019464,2]
[358376256,1745017832965,-1231.53928355,0.00019464,2]
[358376257,1745017832973,-1231.53928355,0.00019464,2]
[358376258,1745017832982,-1231.53928355,0.00019464,2]
[358376259,1745017832991,-1219.59258038,0.00019464,2]
[358376260,1745017833002,-11.94670317,0.00019464,2]
[358376261,1745017833010,-1231.53928355,0.00019464,2]
[358376262,1745017833020,-1231.53928355,0.00019464,2]
[358376263,1745017833030,-1231.53928355,0.00019464,2]
[358376264,1745017833039,-1231.53928355,0.00019464,2]
[358376265,1745017833049,-1231.53928355,0.00019464,2]
[358376266,1745017833058,-1231.53928355,0.00019464,2]
[358376267,1745017833067,-1231.53928355,0.00019464,2]
[358376268,1745017833076,-1231.53928355,0.00019464,2]
[358376269,1745017833084,-1231.53928355,0.00019464,2]
[358376270,1745017833093,-580.76465895,0.00019464,2]
[358376272,1745017838755,-650.7746246,0.00019464,2]
[358376273,1745017838766,-96.9453754,0.00019464,2]
[358376274,1745017838778,-1134.59390815,0.00019464,2]
[358376275,1745017838788,-1231.53928355,0.00019464,2]
[358376276,1745017838798,-1221.8668083,0.00019464,2]
[358376283,1745017841024,-9.67247525,0.00019464,2]
[358376284,1745017841035,-1231.53928355,0.00019464,2]
[358376285,1745017841046,-938.99343564,0.00019464,2]
[358376286,1745017841058,-292.54584791,0.00019464,2]
[358376287,1745017841068,-1231.53928355,0.00019464,2]
[358376288,1745017841078,-1231.53928355,0.00019464,2]
[358376289,1745017841087,-1231.53928355,0.00019464,2]
[358376290,1745017841097,-1231.53928355,0.00019464,2]
[358376291,1745017841106,-1231.53928355,0.00019464,2]
[358376292,1745017841115,-1231.53928355,0.00019464,2]
[358376293,1745017841125,-1231.53928355,0.00019464,2]
[358376294,1745017841135,-1231.53928355,0.00019464,2]
[358376295,1745017841144,-1231.53928355,0.00019464,2]
[358376296,1745017841153,-1231.53928355,0.00019464,2]
[358376297,1745017841163,-1231.53928355,0.00019464,2]
[358376298,1745017841173,-1231.53928355,0.00019464,2]
[358376299,1745017841183,-1229.79241933,0.00019464,2]
[358376300,1745017841193,-1229.79241933,0.00019464,2]
[358376301,1745017841202,-1229.79241933,0.00019464,2]
[358376302,1745017841212,-1229.79241933,0.00019464,2]
[358376303,1745017841221,-1229.79241933,0.00019464,2]
[358376304,1745017841230,-1229.79241933,0.00019464,2]
[358376305,1745017841240,-1229.79241933,0.00019464,2]
[358376306,1745017841250,-1229.79241933,0.00019464,2]
[358376307,1745017841259,-1229.79241933,0.00019464,2]
[358376308,1745017841268,-1229.79241933,0.00019464,2]
[358376309,1745017841278,-1229.79241933,0.00019464,2]
[358376310,1745017841287,-1229.79241933,0.00019464,2]
[358376311,1745017841297,-1229.79241933,0.00019464,2]
[358376312,1745017841306,-1229.79241933,0.00019464,2]
[358376313,1745017841316,-1229.79241933,0.00019464,2]
[358376314,1745017841326,-1229.79241933,0.00019464,2]
[358376315,1745017841336,-1229.79241933,0.00019464,2]
[358376316,1745017841346,-1229.79241933,0.00019464,2]
[358376317,1745017841355,-1229.79241933,0.00019464,2]
[358376318,1745017841365,-1229.79241933,0.00019464,2]
[358376319,1745017841374,-1229.79241933,0.00019464,2]
[358376320,1745017841384,-1229.79241933,0.00019464,2]
[358376321,1745017841393,-1229.79241933,0.00019464,2]
[358376322,1745017841403,-1229.79241933,0.00019464,2]
[358376323,1745017841413,-1229.79241933,0.00019464,2]
[358376324,1745017841422,-1229.79241933,0.00019464,2]
[358376325,1745017841431,-1229.79241933,0.00019464,2]
[358376326,1745017841441,-1229.79241933,0.00019464,2]
[358376327,1745017841450,-1229.79241933,0.00019464,2]
[358376328,1745017841460,-1229.79241933,0.00019464,2]
[358376329,1745017841469,-404.625614,0.00020465,2]
[358376330,1745017841478,-500.0,0.00020473,2]
[358376331,1745017841487,-404.625614,0.0002052,2]
[358376332,1745017841495,-404.625614,0.00021817,2]
[358376333,1745017841505,-296.62915833,0.000219,120]
[358376334,1745017841518,-1370.36085054,0.000219,3]
[358376335,1745017841528,-300.0,0.00021916,2]
[358376336,1745017841538,-300.0,0.00021916,2]
[358376337,1745017841549,-33557.94262767,0.00021917,2]
[358376338,1745017841559,-700.08239449,0.00021917,3]
[358376339,1745017841569,-228.90842475,0.00021917,2]
[358376340,1745017841579,-500.0,0.00021917,2]
[358376341,1745017841589,-341.33885881,0.00021917,2]
[358376344,1745017843994,-158.66114119,0.00021917,2]
[358376345,1745017844008,-500.0,0.00021917,2]
[358376346,1745017844017,-500.0,0.00021917,2]
[358376347,1745017844027,-500.0,0.00021917,2]
[358376348,1745017844037,-370.76610512,0.00021917,2]
[358376352,1745017846612,-129.23389488,0.00021917,2]
[358376354,1745017846622,-500.0,0.00021917,2]
[358376355,1745017846631,-649.21,0.00021917,2]
[358376356,1745017846640,-481.43295988,0.00021917,2]
[358376357,1745017846652,-18.56704012,0.00021917,2]
[358376358,1745017846662,-500.0,0.00021917,2]
[358376359,1745017846672,-500.0,0.00021917,2]
[358376360,1745017846682,-500.0,0.00021917,2]
[358376361,1745017846692,-536.0,0.00021917,2]
[358376362,1745017846702,-500.0,0.00021917,2]
[358376363,1745017846712,-291.79836748,0.00021917,2]
[358376364,1745017846722,-231.99246041,0.00021917,2]
[358376365,1745017846732,-500.0,0.00021917,2]
[358376366,1745017846742,-500.0,0.00021917,2]
[358376367,1745017846751,-500.0,0.00021917,2]
[358376368,1745017846761,-500.0,0.00021917,2]
[358376369,1745017846771,-500.0,0.00021917,2]
[358376370,1745017846781,-500.0,0.00021917,2]
[358376371,1745017846790,-500.0,0.00021917,2]
[358376372,1745017846800,-500.0,0.00021917,2]
[358376373,1745017846810,-500.0,0.00021917,2]
[358376374,1745017846819,-500.0,0.00021917,2]
[358376375,1745017846829,-500.0,0.00021917,2]
[358376376,1745017846838,-2690.95,0.00021917,2]
[358376377,1745017846847,-376.41385025,0.00021917,2]
[358376378,1745017846859,-830.06,0.00021917,2]
[358376380,1745017846868,-500.0,0.00021917,2]
[358376382,1745017846877,-1235.48,0.00021917,2]
[358376384,1745017846887,-500.0,0.00021917,2]
[358376386,1745017846897,-500.0,0.00021917,2]
[358376387,1745017846907,-501.93802603,0.00021917,2]
[358376388,1745017846917,-665.9,0.00021917,2]
[358376389,1745017846927,-591.21,0.00021917,2]
[358376390,1745017846937,-500.0,0.00021917,2]
[358376391,1745017846947,-500.0,0.00021917,2]
[358376392,1745017846957,-500.0,0.00021917,2]
[358376393,1745017846967,-500.0,0.00021917,2]
[358376394,1745017846977,-500.0,0.00021917,2]
[358376395,1745017846986,-500.0,0.00021917,2]
[358376396,1745017846996,-500.0,0.00021917,2]
[358376397,1745017847009,-502.24086841,0.00021917,2]
[358376398,1745017847019,-500.0,0.00021917,2]
[358376399,1745017847029,-500.0,0.00021917,2]
[358376400,1745017847040,-500.0,0.00021917,2]
[358376401,1745017847051,-500.0,0.00021917,2]
[358376402,1745017847062,-606.68,0.00021917,2]
[358376403,1745017847073,-500.0,0.00021917,2]
[358376404,1745017847084,-560.96,0.00021917,2]
[358376405,1745017847095,-500.0,0.00021917,2]
[358376406,1745017847106,-500.0,0.00021917,2]
[358376407,1745017847116,-637.18,0.00021917,2]
[358376408,1745017847126,-500.0,0.00021917,2]
[358376409,1745017847137,-616.4,0.00021917,2]
[358376410,1745017847148,-518.75,0.00021917,2]
[358376411,1745017847164,-500.0,0.00021917,2]
[358376412,1745017847174,-787.91,0.00021917,2]
[358376413,1745017847183,-555.14,0.00021917,2]
[358376414,1745017847193,-152.93041368,0.00021917,2]
[358376415,1745017847202,-1205.35,0.00021917,2]
[358376416,1745017847212,-514.23,0.00021917,2]
[358376417,1745017847222,-500.0,0.00021917,2]
[358376418,1745017847231,-580.51000031,0.00021917,2]
[358376419,1745017847241,-584.69,0.00021917,2]
[358376420,1745017847250,-500.0,0.00021917,2]
[358376421,1745017847260,-1473.47,0.00021917,2]
[358376422,1745017847270,-253.83867182,0.00021917,2]
[358376423,1745017847279,-648.83,0.00021917,2]
[358376424,1745017847289,-500.0,0.00021917,2]
[358376425,1745017847298,-1427.38,0.00021917,2]
[358376426,1745017847308,-1008.04,0.00021917,2]
[358376427,1745017847318,-500.0,0.00021917,2]
[358376428,1745017847328,-3478.39,0.00021917,2]
[358376429,1745017847337,-738.95,0.00021917,2]
[358376430,1745017847347,-705.87,0.00021917,2]
[358376431,1745017847357,-500.0,0.00021917,2]
[358376432,1745017847367,-597.65,0.00021917,2]
[358376433,1745017847376,-881.35,0.00021917,2]
[358376434,1745017847386,-1000.0,0.00021917,2]
[358376435,1745017847396,-207.02631227,0.00021917,2]
[358376436,1745017847405,-500.0,0.00021917,2]
[358376437,1745017847415,-500.0,0.00021917,2]
[358376438,1745017847425,-526.88107209,0.00021917,2]
[358376439,1745017847434,-500.0,0.00021917,2]
[358376440,1745017847443,-500.0,0.00021917,2]
[358376441,1745017847454,-553.78,0.00021917,2]
[358376442,1745017847463,-458.38847027,0.00021917,2]
[358376443,1745017847473,-500.0,0.00021917,2]
[358376444,1745017847483,-500.0,0.00021917,2]
[358376445,1745017847492,-500.0,0.00021917,2]
[358376446,1745017847501,-500.0,0.00021917,2]
[358376447,1745017847511,-500.0,0.00021917,2]
[358376448,1745017847521,-500.0,0.00021917,2]
[358376449,1745017847531,-500.0,0.00021917,2]
[358376450,1745017847541,-500.0,0.00021917,2]
[358376451,1745017847550,-500.0,0.00021917,2]
[358376452,1745017847561,-500.0,0.00021917,2]
[358376453,1745017847570,-500.0,0.00021917,2]
[358376454,1745017847580,-500.0,0.00021917,2]
[358376455,1745017847590,-665.7,0.00021917,2]
[358376456,1745017847600,-500.0,0.00021917,2]
[358376457,1745017847610,-119.87101546,0.00021917,2]
[358376472,1745019032128,-380.12898454,0.00021917,2]
[358376473,1745019032138,-996.41,0.00021917,2]
[358376474,1745019032148,-500.0,0.00021917,2]
[358376475,1745019032157,-673.23,0.00021917,2]
[358376476,1745019032167,-454.53158665,0.00021917,2]
[358376477,1745019032178,-500.0,0.00021917,2]
[358376478,1745019032189,-727.21,0.00021917,2]
[358376479,1745019032200,-500.0,0.00021917,2]
[358376480,1745019032211,-500.0,0.00021917,2]
[358376481,1745019032221,-500.0,0.00021917,2]
[358376482,1745019032231,-1199.49,0.00021917,2]
[358376483,1745019032241,-500.0,0.00021917,2]
[358376484,1745019032252,-500.0,0.00021917,2]
[358376485,1745019032262,-500.0,0.00021917,2]
[358376486,1745019032272,-500.0,0.00021917,2]
[358376487,1745019032284,-500.0,0.00021917,2]
[358376488,1745019032294,-696.14,0.00021917,2]
[358376489,1745019032306,-501.32548058,0.00021917,2]
[358376490,1745019032316,-713.98,0.00021917,2]
[358376491,1745019032326,-500.0,0.00021917,2]
[358376492,1745019032337,-500.0,0.00021917,2]
[358376493,1745019032347,-500.0,0.00021917,2]
[358376494,1745019032357,-1076.56,0.00021917,2]
[358376495,1745019032366,-616.62,0.00021917,2]
[358376496,1745019032376,-210.39006785,0.00021917,2]
[358376497,1745019032385,-500.0,0.00021917,2]
[358376498,1745019032394,-611.07,0.00021917,2]
[358376499,1745019032404,-500.0,0.00021917,2]
[358376500,1745019032413,-500.0,0.00021917,2]
[358376501,1745019032423,-500.0,0.00021917,2]
[358376502,1745019032432,-500.0,0.00021917,2]
[358376503,1745019032442,-643.74381875,0.00021917,2]
[358376504,1745019032455,-764.28,0.00021917,2]
[358376505,1745019032465,-670.02,0.00021917,2]
[358376506,1745019032474,-500.0,0.00021917,2]
[358376507,1745019032486,-500.0,0.00021917,2]
[358376508,1745019032497,-500.0,0.00021917,2]
[358376509,1745019032506,-533.3,0.00021917,2]
[358376510,1745019032516,-557.95,0.00021917,2]
[358376511,1745019032526,-500.0,0.00021917,2]
[358376512,1745019032536,-500.0,0.00021917,2]
[358376513,1745019032546,-500.0,0.00021917,2]
[358376514,1745019032555,-593.47,0.00021917,2]
[358376515,1745019032568,-500.0,0.00021917,2]
[358376516,1745019032578,-635.0,0.00021917,2]
[358376517,1745019032588,-500.0,0.00021917,2]
[358376518,1745019032597,-500.0,0.00021917,2]
[358376519,1745019032607,-1264.65,0.00021917,2]
[358376520,1745019032617,-500.0,0.00021917,2]
[358376521,1745019032627,-500.0,0.00021917,2]
[358376522,1745019032637,-500.0,0.00021917,2]
[358376523,1745019032647,-500.0,0.00021917,2]
[358376524,1745019032657,-500.0,0.00021917,2]
[358376525,1745019032666,-510.28,0.00021917,2]
[358376526,1745019032676,-500.0,0.00021917,2]
[358376527,1745019032686,-500.0,0.00021917,2]
[358376528,1745019032696,-500.0,0.00021917,2]
[358376529,1745019032706,-500.0,0.00021917,2]
[358376530,1745019032715,-500.0,0.00021917,2]
[358376531,1745019032725,-324.43451363,0.00021917,2]
[358376532,1745019032735,-500.0,0.00021917,2]
[358376533,1745019032744,-500.0,0.00021917,2]
[358376534,1745019032754,-500.0,0.00021917,2]
[358376535,1745019032764,-500.0,0.00021917,2]
[358376536,1745019032773,-500.0,0.00021917,2]
[358376537,1745019032783,-500.0,0.00021917,2]
[358376538,1745019032793,-500.0,0.00021917,2]
[358376539,1745019032802,-500.0,0.00021917,2]
[358376540,1745019032812,-500.0,0.00021917,2]
[358376541,1745019032822,-500.0,0.00021917,2]
[358376542,1745019032831,-500.0,0.00021917,2]
[358376543,1745019032841,-500.0,0.00021917,2]
[358376544,1745019032851,-500.0,0.00021917,2]
[358376545,1745019032861,-500.0,0.00021917,2]
[358376546,1745019032870,-524.63,0.00021917,2]
[358376547,1745019032880,-1122.53,0.00021917,2]
[358376548,1745019032890,-452.75423156,0.00021917,2]
[358376549,1745019032901,-1179.95,0.00021917,2]
[358376550,1745019032911,-500.0,0.00021917,2]
[358376551,1745019032920,-544.08,0.00021917,2]
[358376552,1745019032930,-500.0,0.00021917,2]
[358376553,1745019032940,-500.0,0.00021917,2]
[358376554,1745019032950,-500.0,0.00021917,2]
[358376555,1745019032959,-500.0,0.00021917,2]
[358376556,1745019032969,-500.0,0.00021917,2]
[358376557,1745019032978,-576.89,0.00021917,2]
[358376558,1745019032988,-500.0,0.00021917,2]
[358376559,1745019032998,-1626.71,0.00021917,2]
[358376560,1745019033008,-500.0,0.00021917,2]
[358376561,1745019033018,-500.0,0.00021917,2]
[358376562,1745019033027,-500.0,0.00021917,2]
[358376563,1745019033037,-942.54,0.00021917,2]
[358376564,1745019033046,-500.0,0.00021917,2]
[358376565,1745019033056,-653.13,0.00021917,2]
[358376566,1745019033067,-905.98,0.00021917,2]
[358376567,1745019033077,-500.0,0.00021917,2]
[358376568,1745019033086,-500.0,0.00021917,2]
[358376569,1745019033096,-500.0,0.00021917,2]
[358376570,1745019033105,-500.0,0.00021917,2]
[358376571,1745019033115,-500.0,0.00021917,2]
[358376572,1745019033124,-500.0,0.00021917,2]
[358376573,1745019033133,-500.0,0.00021917,2]
[358376574,1745019033143,-500.0,0.00021917,2]
[358376575,1745019033152,-500.0,0.00021917,2]
[358376576,1745019033161,-289.94029189,0.00021917,2]
[358376577,1745019033171,-1076.66,0.00021917,2]
[358376578,1745019033181,-500.0,0.00021917,2]
[358376579,1745019033190,-2368.99,0.00021917,2]
[358376580,1745019033199,-500.0,0.00021917,2]
[358376581,1745019033209,-521.01,0.00021917,2]
[358376582,1745019033218,-500.0,0.00021917,2]
[358376583,1745019033227,-500.0,0.00021917,2]
[358376584,1745019033237,-4275.15,0.00021917,2]
[358376585,1745019033246,-1653.85,0.00021917,2]
[358376586,1745019033256,-500.0,0.00021917,2]
[358376587,1745019033267,-151.0,0.00021917,2]
[358376588,1745019033276,-151.0,0.00021917,2]
[358376589,1745019033286,-257.79916,0.00021917,2]
[358376590,1745019033295,-500.0,0.00021917,2]
[358376591,1745019033305,-1045.36,0.00021917,2]
[358376592,1745019033314,-500.0,0.00021917,2]
[358376593,1745019033323,-1074.9,0.00021917,2]
[358376594,1745019033333,-543.65917517,0.00021917,2]
[358376595,1745019033343,-500.0,0.00021917,2]
[358376596,1745019033352,-500.0,0.00021917,2]
[358376597,1745019033362,-500.0,0.00021917,2]
[358376598,1745019033372,-500.0,0.00021917,2]
[358376599,1745019033382,-500.0,0.00021917,2]
[358376600,1745019033391,-500.0,0.00021917,2]
[358376601,1745019033401,-500.0,0.00021917,2]
[358376602,1745019033410,-500.0,0.00021917,2]
[358376603,1745019033420,-500.0,0.00021917,2]
[358376604,1745019033429,-1765.93,0.00021917,2]
[358376605,1745019033439,-500.0,0.00021917,2]
[358376606,1745019033449,-905.98,0.00021917,2]
[358376607,1745019033459,-567.14,0.00021917,2]
[358376608,1745019033468,-500.0,0.00021917,2]
[358376609,1745019033478,-196.67355079,0.00021917,2]
[358376610,1745019033487,-500.0,0.00021917,2]
[358376611,1745019033497,-1089.4,0.00021917,2]
[358376612,1745019033506,-918.24,0.00021917,2]
[358376613,1745019033516,-215.22926767,0.00021917,2]
[358376614,1745019033525,-2582.08,0.00021917,2]
[358376615,1745019033535,-500.0,0.00021917,2]
[358376616,1745019033544,-500.0,0.00021917,2]
[358376617,1745019033554,-500.0,0.00021917,2]
[358376618,1745019033564,-558.26,0.00021917,2]
[358376619,1745019033573,-500.0,0.00021917,2]
[358376620,1745019033583,-513.55,0.00021917,2]
[358376621,1745019033593,-1085.26,0.00021917,2]
[358376622,1745019033602,-500.0,0.00021917,2]
[358376623,1745019033613,-500.0,0.00021917,2]
[358376624,1745019033622,-632.92,0.00021917,2]
[358376625,1745019033632,-500.0,0.00021917,2]
[358376626,1745019033642,-668.31,0.00021917,2]
[358376627,1745019033651,-3172.25,0.00021917,2]
[358376628,1745019033661,-500.0,0.00021917,2]
[358376629,1745019033670,-1075.24,0.00021917,2]
[358376630,1745019033680,-500.0,0.00021917,2]
[358376631,1745019033689,-500.0,0.00021917,2]
[358376632,1745019033699,-500.0,0.00021917,2]
[358376633,1745019033708,-373.20359755,0.00021917,2]